fUSD/lending_fUSD_20240905
["ID","MTS","AMOUNT","RATE_DAILY","PERIOD"]
[337240702,1725527432457,-8942.66232885,0.0001465,2]
[337240703,1725527432468,-500.0,0.0001465,2]
[337240704,1725527432479,-886.55,0.0001465,2]
[337240705,1725527432491,-734.6075021,0.0001465,2]
[337240707,1725527432502,-29219.29385109,0.0001465,2]
[337240709,1725527432513,-2300.0,0.0001465,2]
[337240710,1725527438172,-3572.75652903,0.0001465,2]
[337240711,1725527438183,-1327.24347097,0.0001465,2]
[337240712,1725527438229,-14105.80746651,0.0001465,2]
[337240713,1725527438238,-751.59593346,0.0001468,2]
[337240714,1725527438250,-2582.62206654,0.0001468,2]
[337240715,1725527438259,-439.317,0.0001468,2]
[337240716,1725527438268,-249.499,0.0001468,2]
[337240717,1725527438277,-410.011,0.0001468,2]
[337240718,1725527438287,-1104.44560458,0.0001469,2]
[337240719,1725527438296,-150.0,0.00014736,2]
[337240720,1725527438305,-300.860364,0.000148,2]
[337240721,1725527438315,-150.0,0.00014802,2]
[337240722,1725527438327,-150.0,0.00014856,2]
[337240723,1725527438337,-296.98310568,0.00014886,2]
[337240724,1725527438346,-2744.2062,0.0001489,2]
[337240725,1725527438355,-1888.0631,0.0001489,2]
[337240726,1725527438364,-312.962779,0.00014898,2]
[337240727,1725527438373,-973.46784647,0.00014923,2]
[337240728,1725527438382,-1500.0,0.00014944,2]
[337240729,1725527438391,-150.0,0.00014955,2]
[337240730,1725527438401,-308.55,0.00014958,2]
[337240731,1725527438410,-150.0,0.00014962,2]
[337240732,1725527438419,-2715.42467,0.00014979,2]
[337240733,1725527438428,-2645.78168715,0.0001498,3]
[337240734,1725527438437,-383.52,0.0001498,3]
[337240735,1725527438446,-386.28685625,0.0001498,3]
[337240736,1725527438457,-672.02581861,0.0001498,3]
[337240737,1725527438466,-150.0,0.00014986,2]
[337240738,1725527438475,-277.32562927,0.00014986,2]
[337240739,1725527438484,-268.10200012,0.00014988,3]
[337240777,1725527440149,-261.05433731,0.00014988,3]
[337240778,1725527440159,-504.62705168,0.00014989,3]
[337240779,1725527440315,-553.68562318,0.00014989,3]
[337240780,1725527440325,-1272.27,0.00014989,2]
[337240781,1725527440335,-1272.27,0.00014989,2]
[337240782,1725527440344,-1587.46901229,0.0001499,3]
[337240783,1725527440354,-1280.92562593,0.0001499,3]
[337240784,1725527440439,-39.58601836,0.0001499,3]
[337240785,1725527440493,-81.17739971,0.0001499,3]
[337240786,1725527440504,-104628.36954694,0.0001499,3]
[337240787,1725527440515,-34277.58305006,0.0001499,3]
[337240788,1725527440525,-2000.0,0.0001499,2]
[337240789,1725527440535,-200.0,0.0001499,2]
[337240790,1725527440544,-2000.0,0.0001499,2]
[337240791,1725527440554,-200.0,0.0001499,2]
[337240792,1725527440563,-224492.226626,0.0001499,3]
[337240793,1725527440573,-1000.0,0.00014999,2]
[337240794,1725527440582,-1000.0,0.00014999,2]
[337240795,1725527440592,-1000.0,0.00014999,2]
[337240796,1725527440601,-1000.0,0.00014999,2]
[337240797,1725527440610,-1000.0,0.00014999,2]
[337240798,1725527440620,-1000.0,0.00014999,2]
[337240799,1725527440629,-1000.0,0.00014999,2]
[337240800,1725527440639,-1000.0,0.00014999,2]
[337240801,1725527440653,-1000.0,0.00014999,2]
[337240802,1725527440663,-1272.27,0.00014999,2]
[337240803,1725527440671,-1272.27,0.00014999,2]
[337240804,1725527440680,-1272.27,0.00014999,2]
[337240805,1725527440690,-1272.27,0.00014999,2]
[337240806,1725527440700,-1272.27,0.00014999,2]
[337240807,1725527440885,-1272.27,0.00014999,2]
[337240808,1725527440898,-1272.27,0.00014999,2]
[337240809,1725527440908,-1272.27,0.00014999,2]
[337240810,1725527440917,-1272.27,0.00014999,2]
[337240811,1725527440927,-1272.27,0.00014999,2]
[337240812,1725527440936,-1272.27,0.00014999,2]
[337240813,1725527440946,-1272.27,0.00014999,2]
[337240814,1725527440955,-1272.27,0.00014999,2]
[337240815,1725527440965,-1272.27,0.00014999,2]
[337240816,1725527440975,-1272.27,0.00014999,2]
[337240817,1725527440984,-1272.27,0.00014999,2]
[337240818,1725527440993,-1272.27,0.00014999,2]
[337240819,1725527441003,-1272.27,0.00014999,2]
[337240820,1725527441012,-1272.27,0.00014999,2]
[337240821,1725527441022,-1272.27,0.00014999,2]
[337240822,1725527441031,-1272.27,0.00014999,2]
[337240823,1725527441040,-1272.39,0.00014999,2]
[337240824,1725527441050,-652.0,0.00014999,2]
[337240825,1725527441059,-393215.4728437,0.00015,2]
[337240826,1725527441070,-2927511.00699855,0.00015,2]
[337240827,1725527441098,-899.23213178,0.00015,2]
[337240828,1725527441110,-6798.96428217,0.00015,2]
[337240829,1725527441122,-398.62975953,0.00015,2]
[337240853,1725527443115,-6388.382,0.00015,2]
[337240854,1725527443259,-28449.13594169,0.00015,2]
[337240855,1725527443286,-23018.06022655,0.00015,2]
[337240856,1725527443297,-8819.29105158,0.00015,2]
[337240857,1725527443309,-1912.67514071,0.00015,2]
[337240858,1725527443320,-900.0,0.00015,2]
[337240859,1725527443331,-4974.18753125,0.00015,2]
[337240860,1725527443347,-5843.87048811,0.00015,2]
[337240863,1725527443784,-2734.9,0.00015,2]
[337240864,1725527446104,-1336.21180422,0.00015,2]
[337240865,1725527446165,-1600.26692136,0.00015,2]
[337240866,1725527446285,-499.13854909,0.00015,2]
[337240867,1725527446343,-2743.03729639,0.00015,2]
[337240868,1725527447423,-39623.6796389,0.00015,2]
[337240870,1725527516266,1900.0,0.000139,5]
[337240871,1725527518377,3800.0,0.00014,5]
[337240872,1725527520489,3782.71066027,0.000141,5]
[337240874,1725527612660,202.133293,0.00024249,120]
[337240883,1725527835111,975.0,0.00027,120]
[337240884,1725527849657,989.91559932,0.00025,60]
[337240887,1725527908830,676.82,0.00011739,2]
[337240888,1725527925348,513.7,0.00027,120]
[337240889,1725527957818,500.0,0.00027,120]
[337240890,1725527959178,-1917.28933973,0.000141,5]
[337240891,1725527959208,-7600.0,0.000142,5]
[337240892,1725527959238,-7415.64692123,0.000143,5]
[337240893,1725527969623,300000.0,0.00027,120]
[337240912,1725528379008,214.79,0.00010959,2]
[337240917,1725528457440,642.97,0.0001125,2]
[337240919,1725528480618,1085.19216691,0.0001,2]
[337240941,1725528632257,-499.6,0.000129,2]
[337240942,1725528632269,-404.10872344,0.000129,2]
[337240943,1725528632278,-595.79187656,0.00013,2]
[337240944,1725528632289,-765.13711969,0.00013,2]
[337240945,1725528632298,-235.25608031,0.00013,2]
[337240946,1725528632319,-475.0894591,0.00013,2]
[337240947,1725528632328,-73.5884285,0.00013168,2]
[337240948,1725528632384,-544.02,0.00013168,2]
[337240949,1725528632397,-456.8215715,0.00013168,2]
[337240950,1725528632407,-300.0,0.00013197,2]
[337240951,1725528632418,-150.0,0.00013197,2]
[337240952,1725528632427,-3792.09247124,0.00013198,2]
[337240953,1725528632439,-657.30298068,0.00013198,2]
[337240954,1725528632454,-1176.27455365,0.00013198,2]
[337240955,1725528632466,-8423.80945376,0.00013198,2]
[337240956,1725528632478,-438.76974543,0.00013198,2]
[337240957,1725528632489,-696.77431602,0.00013198,2]
[337240958,1725528632501,-366.29087724,0.00013198,2]
[337240959,1725528632512,-2670.40920195,0.00013198,2]
[337240961,1725528632523,-5599.02414876,0.00013198,2]
[337240962,1725528632533,-3576.97871244,0.00013198,2]
[337240963,1725528632544,-4826.7295626,0.00013198,2]
[337240967,1725528638294,-717.11850474,0.00013198,2]
[337240968,1725528638305,-404.28989155,0.00013198,2]
[337240969,1725528638317,-4410.0552091,0.00013198,2]
[337240970,1725528638359,-529.12011047,0.00013198,2]
[337240971,1725528638370,-3752.97498577,0.00013198,2]
[337240972,1725528638421,-54822.53541389,0.00013198,2]
[337240973,1725528638430,-360.89093969,0.00013216,2]
[337240974,1725528638442,-925.30673529,0.00013216,2]
[337240975,1725528638480,-22613.80232502,0.00013216,2]
[337240976,1725528638489,-400.71,0.00013257,2]
[337240977,1725528638498,-173.46,0.00013346,2]
[337240978,1725528638507,-250.0,0.00013405,2]
[337240979,1725528638516,-250.0,0.00013483,2]
[337240980,1725528638525,-194.75826541,0.00013488,2]
[337240981,1725528638534,-480.0,0.00013489,2]
[337240982,1725528638543,-219.6,0.00013489,2]
[337240983,1725528638552,-285.4,0.00013489,2]
[337240984,1725528638564,-240.17,0.00013513,2]
[337240985,1725528638574,-196.09,0.00013513,2]
[337240986,1725528638584,-226.57,0.00013513,2]
[337240987,1725528638594,-642.97,0.00013514,2]
[337240988,1725528638603,-250.0,0.00013521,2]
[337240989,1725528638613,-150.0,0.00013539,2]
[337240990,1725528638622,-167.06,0.00013539,2]
[337240991,1725528638631,-500.0,0.00013575,2]
[337240992,1725528638640,-157.56,0.000136,2]
[337240993,1725528638649,-499.99,0.00013607,2]
[337240994,1725528638658,-166.31053925,0.00013625,2]
[337240995,1725528638667,-18002.97,0.00013699,2]
[337240997,1725528638676,-28991.35,0.00013699,2]
[337240999,1725528638685,-174.04,0.00013726,2]
[337241001,1725528638694,-520.0,0.00013738,2]
[337241003,1725528638704,-166.31053917,0.00013767,2]
[337241005,1725528638713,-3945.06,0.00013781,2]
[337241007,1725528638724,-200.0,0.00013822,2]
[337241009,1725528638733,-500.0,0.000139,5]
[337241011,1725528638743,-166.31053917,0.00013908,2]
[337241013,1725528638752,-180.44,0.00013922,2]
[337241015,1725528638761,-1100.0,0.00014,5]
[337241017,1725528638770,-166.31053917,0.0001405,2]
[337241019,1725528638779,-1700.0,0.000141,5]
[337241021,1725528638788,-791.84,0.00014141,2]
[337241023,1725528638797,-791.84,0.00014141,2]
[337241025,1725528638806,-791.84,0.00014141,2]
[337241027,1725528638815,-791.84,0.00014141,2]
[337241029,1725528638824,-382.07,0.00014141,2]
[337241031,1725528638833,-166.31053917,0.00014192,2]
[337241032,1725528638842,-2300.0,0.000142,5]
[337241034,1725528638851,-2900.0,0.000143,5]
[337241036,1725528638861,-166.31053917,0.00014333,2]
[337241038,1725528638870,-500.0,0.000144,5]
[337241040,1725528638879,-420.0,0.0001447,2]
[337241042,1725528638888,-166.31053917,0.00014475,2]
[337241044,1725528638897,-500.0,0.000145,5]
[337241046,1725528638907,-369.2051,0.000146,2]
[337241048,1725528638916,-500.0,0.000146,5]
[337241050,1725528638925,-166.31053917,0.00014617,2]
[337241052,1725528638934,-1030.5125,0.000147,2]
[337241054,1725528638943,-963.8722,0.000147,2]
[337241056,1725528638952,-500.0,0.000147,5]
[337241058,1725528638961,-166.31053917,0.00014758,2]
[337241060,1725528638971,-801.464,0.0001479,2]
[337241062,1725528638979,-518.94,0.00014799,2]
[337241064,1725528638987,-500.0,0.00014799,2]
[337241066,1725528638995,-42921.50134367,0.000148,2]
[337241068,1725528639004,-1385.0,0.000148,5]
[337241070,1725528639013,-2383.32382,0.0001485,2]
[337241072,1725528639022,-328.28053856,0.00014873,2]
[337241074,1725528639032,-7500.0,0.00014879,2]
[337241076,1725528639046,-42111.1157894,0.0001488,3]
[337241077,1725528639056,-316.0156951,0.0001488,2]
[337241079,1725528639066,-316.01569506,0.00014883,2]
[337241081,1725528639075,-316.01569506,0.00014886,2]
[337241083,1725528639086,-316.01569506,0.00014889,2]
[337241085,1725528639095,-500.0,0.00014889,2]
[337241087,1725528639104,-500.0,0.00014889,2]
[337241089,1725528639114,-500.0,0.00014889,2]
[337241091,1725528639123,-500.0,0.00014889,2]
[337241093,1725528639133,-500.0,0.00014889,2]
[337241095,1725528639142,-20000.0,0.0001489,2]
[337241097,1725528639151,-946.3744,0.0001489,2]
[337241099,1725528639160,-10128.6976,0.0001489,2]
[337241101,1725528639169,-20399.6072,0.0001489,2]
[337241103,1725528639178,-81969.7521,0.0001489,2]
[337241105,1725528639188,-1000.0,0.0001489,2]
[337241107,1725528639198,-545.5327,0.0001489,2]
[337241108,1725528639209,-316.01569506,0.00014891,2]
[337241110,1725528639218,-316.01569506,0.00014894,2]
[337241112,1725528639229,-316.01569506,0.00014897,2]
[337241114,1725528639239,-493.677761,0.000149,2]
[337241116,1725528639248,-316.01569506,0.000149,2]
[337241118,1725528639257,-166.31053917,0.000149,2]
[337241120,1725528639266,-328.28053856,0.000149,2]
[337241122,1725528639276,-264.47,0.00014924,2]
[337241124,1725528639285,-150.56,0.0001496,2]
[337241125,1725528639295,-1046.69,0.00014962,2]
[337241126,1725528639304,-5263.88947368,0.00014969,3]
[337241127,1725528639314,-36847.2263158,0.00014969,3]
[337241128,1725528639325,-42111.1157894,0.0001497,3]
[337241129,1725528639334,-500.0,0.00014973,2]
[337241130,1725528639343,-5263.88947368,0.00014978,3]
[337241131,1725528639353,-10527.7789474,0.00014979,3]
[337241132,1725528639362,-12099.925059,0.00014979,3]
[337241133,1725528639371,-500.0,0.00014979,2]
[337241134,1725528639380,-42111.1157894,0.0001498,3]
[337241135,1725528639390,-36299.7751769,0.0001498,3]
[337241136,1725528639399,-15791.668421,0.0001498,3]
[337241137,1725528639408,-12099.925059,0.0001498,3]
[337241138,1725528639419,-500.0,0.00014988,2]
[337241139,1725528639428,-5263.88947368,0.00014988,3]
[337241140,1725528639437,-12099.925059,0.00014988,3]
[337241141,1725528639447,-10527.7789474,0.00014989,3]
[337241142,1725528639456,-72599.5503539,0.00014989,3]
[337241143,1725528639466,-500.0,0.00014989,2]
[337241144,1725528639476,-500.0,0.00014989,2]
[337241145,1725528639485,-500.0,0.00014989,2]
[337241146,1725528639495,-500.0,0.00014989,2]
[337241147,1725528639504,-31583.92172229,0.0001499,3]
[337241148,1725528639517,-1949.81251848,0.0001499,3]
[337241149,1725528639528,-324.58299937,0.0001499,3]
[337241150,1725528639539,-290.50532014,0.0001499,3]
[337241151,1725528639549,-492.40723222,0.0001499,3]
[337241152,1725528639560,-5406.64754168,0.0001499,3]
[337241159,1725528640302,-500.0,0.00013698,2]
[337241160,1725528640312,-500.0,0.00013698,2]
[337241161,1725528640321,-181.8693022,0.00013698,2]
[337241162,1725528640364,-318.1306978,0.00013698,2]
[337241163,1725528640373,-500.0,0.00013698,2]
[337241164,1725528640382,-391.41025357,0.00013698,2]
[337241165,1725528640394,-196.9052366,0.00013698,2]
[337241166,1725528640403,-115.70442911,0.00013698,2]
[337241167,1725528640415,-67.52871334,0.00013698,2]
[337241168,1725528640424,-500.0,0.00013698,2]
[337241169,1725528640434,-224.28534839,0.00013698,2]
[337241170,1725528640443,-2946.68335152,0.0001499,3]
[337241171,1725528640454,-1399.79399091,0.0001499,3]
[337241172,1725528640465,-635.20510333,0.0001499,3]
[337241173,1725528640477,-688.15196471,0.0001499,3]
[337241174,1725528640488,-10400.0,0.0001499,3]
[337241175,1725528640499,-1883.92436493,0.0001499,3]
[337241176,1725528640509,-573.37954002,0.0001499,3]
[337241177,1725528640521,-88018.09762873,0.0001499,3]
[337241178,1725528640534,-10705.91248867,0.0001499,3]
[337241179,1725528640543,-36299.7751769,0.0001499,3]
[337241180,1725528640552,-150.56,0.0001499,2]
[337241181,1725528640561,-150.56,0.0001499,2]
[337241182,1725528640571,-150.56,0.0001499,2]
[337241183,1725528640580,-1448.9159483,0.00014998,2]
[337241184,1725528640591,-14901.3671745,0.00014998,2]
[337241185,1725528640601,-1000.0,0.00014999,2]
[337241186,1725528640611,-1000.0,0.00014999,2]
[337241187,1725528640621,-1000.0,0.00014999,2]
[337241188,1725528640632,-1000.0,0.00014999,2]
[337241189,1725528640641,-1000.0,0.00014999,2]
[337241190,1725528640651,-1000.0,0.00014999,2]
[337241191,1725528640660,-1000.0,0.00014999,2]
[337241192,1725528640670,-1000.0,0.00014999,2]
[337241193,1725528640679,-1000.0,0.00014999,2]
[337241194,1725528640690,-500.0,0.00014999,2]
[337241196,1725528640699,-500.0,0.00014999,2]
[337241197,1725528640708,-500.0,0.00014999,2]
[337241198,1725528640718,-500.0,0.00014999,2]
[337241199,1725528640728,-500.0,0.00014999,2]
[337241200,1725528640737,-171.39,0.00014999,2]
[337241201,1725528640747,-500.0,0.00014999,2]
[337241202,1725528640756,-500.0,0.00014999,2]
[337241203,1725528640767,-500.0,0.00014999,2]
[337241204,1725528640777,-500.0,0.00014999,2]
[337241205,1725528640786,-500.0,0.00014999,2]
[337241206,1725528640796,-500.0,0.00014999,2]
[337241207,1725528640806,-500.0,0.00014999,2]
[337241208,1725528640815,-500.0,0.00014999,2]
[337241209,1725528640826,-500.0,0.00014999,2]
[337241210,1725528640837,-500.0,0.00014999,2]
[337241211,1725528640847,-500.0,0.00014999,2]
[337241212,1725528640856,-500.0,0.00014999,2]
[337241213,1725528640866,-500.0,0.00014999,2]
[337241214,1725528640876,-500.0,0.00014999,2]
[337241215,1725528640886,-443.53,0.00014999,2]
[337241216,1725528640896,-7915.89275159,0.00014999,2]
[337241217,1725528640909,-71206.53664946,0.00014999,2]
[337241218,1725528640922,-23713.43801055,0.00014999,2]
[337241219,1725528640937,-863.3110572,0.00014999,2]
[337241220,1725528640948,-740.07,0.00014999,2]
[337241221,1725528640961,-265.1286,0.00014999,2]
[337241222,1725528640973,-2916.27598262,0.00014999,2]
[337241223,1725528640982,-500.0,0.00014999,2]
[337241224,1725528640991,-313.26959895,0.00014999,2]
[337241225,1725528641002,-186.73040105,0.00014999,2]
[337241226,1725528641012,-282.36159895,0.00014999,2]
[337241227,1725528641023,-217.63840105,0.00014999,2]
[337241228,1725528641032,-500.0,0.00014999,2]
[337241229,1725528641047,-140.05394242,0.00014999,2]
[337241230,1725528641059,-359.94605758,0.00014999,2]
[337241231,1725528641068,-500.0,0.00014999,2]
[337241232,1725528641079,-500.0,0.00014999,2]
[337241233,1725528641088,-500.0,0.00014999,2]
[337241234,1725528641097,-500.0,0.00014999,2]
[337241235,1725528641106,-500.0,0.00014999,2]
[337241236,1725528641118,-500.0,0.00014999,2]
[337241237,1725528641127,-500.0,0.00014999,2]
[337241238,1725528641136,-205.18798748,0.00014999,2]
[337241239,1725528641145,-500.0,0.00014999,2]
[337241240,1725528641154,-500.0,0.00014999,2]
[337241241,1725528641164,-500.0,0.00014999,2]
[337241242,1725528641173,-500.0,0.00014999,2]
[337241243,1725528641183,-500.0,0.00014999,2]
[337241244,1725528641192,-500.0,0.00014999,2]
[337241245,1725528641203,-500.0,0.00014999,2]
[337241246,1725528641213,-408.12,0.00014999,2]
[337241247,1725528641223,-500.0,0.00014999,2]
[337241248,1725528641232,-500.0,0.00014999,2]
[337241249,1725528641241,-500.0,0.00014999,2]
[337241250,1725528641250,-500.0,0.00014999,2]
[337241251,1725528641259,-500.0,0.00014999,2]
[337241252,1725528641268,-500.0,0.00014999,2]
[337241253,1725528641277,-500.0,0.00014999,2]
[337241254,1725528641287,-500.0,0.00014999,2]
[337241255,1725528641296,-607.0975927,0.00014999,2]
[337241256,1725528641305,-763.0,0.00015,2]
[337241257,1725528641314,-18207.72252,0.00015,2]
[337241260,1725528643286,-7452.15383484,0.00015,2]
[337241261,1725528643297,-483.29554631,0.00015,2]
[337241262,1725528643309,-449.242,0.00015,2]
[337241263,1725528643320,-19921.70574928,0.00015,2]
[337241264,1725528643402,-44550.86405831,0.00015,2]
[337241265,1725528643465,-1860.29152202,0.00015,2]
[337241266,1725528643664,-15404.12975638,0.00015,2]
[337241267,1725528643676,-250.69,0.00015,2]
[337241268,1725528643687,-2654.64403753,0.00015,2]
[337241269,1725528643699,-734.35182804,0.00015,2]
[337241271,1725528643710,-3926.88633819,0.00015,2]
[337241274,1725528643726,-9029.48,0.00015,2]
[337241276,1725528643737,-9976.92800006,0.00015,2]
[337241278,1725528646311,-737.0,0.00014999,2]
[337241279,1725528646320,-7158.18987708,0.00015,2]
[337241280,1725528646331,-1143.97892178,0.00015,2]
[337241281,1725528646343,-1891.09879631,0.00015,2]
[337241282,1725528646388,-1424.76356,0.00015,2]
[337241283,1725528646399,-606.5249972,0.00015,2]
[337241284,1725528646410,-1394.51005659,0.00015,2]
[337241285,1725528646421,-511.4223,0.00015,2]
[337241286,1725528646453,-7500.0,0.0001479,2]
[337241287,1725528646462,-7683.09361482,0.00015,2]
[337241288,1725528646473,-572.85,0.00015,2]
[337241289,1725528646485,-1509.11451349,0.00015,2]
[337241290,1725528646684,-0.57710329,0.00015,2]
[337241291,1725528646695,-269.38241397,0.00015,2]
[337241292,1725528646706,-2522.7804,0.00015,2]
[337241293,1725528646717,-1213.37510393,0.00015,2]
[337241294,1725528646729,-4822.53738327,0.00015,2]
[337241295,1725528646741,-910.07126,0.00015,2]
[337241296,1725528646752,-26766.2388339,0.00015,2]
[337241297,1725528646763,-77176.3203611,0.00015,2]
[337241298,1725528646774,-2580.28709736,0.00015,2]
[337241299,1725528646785,-517.49928082,0.00015,2]
[337241305,1725528991719,603.57,0.0001178,2]
[337241312,1725529363613,100000.0,0.00013333,15]
[337241313,1725529391692,20000.0,0.00025,60]
[337241314,1725529400261,160.96,0.00010959,2]
[337241315,1725529426079,7941.19783309,0.000121,2]
[337241316,1725529426101,20000.0,0.000121,2]
[337241317,1725529426122,500.0,0.000121,2]
[337241318,1725529463241,1558.80216691,0.00012,2]
[337241319,1725529495771,573.39,0.00011321,2]
[337241341,1725529831485,-284.28,0.00013035,2]
[337241342,1725529831498,-210.04,0.00013035,2]
[337241343,1725529831508,-14048.7500126,0.00013085,2]
[337241344,1725529831654,-584.59550704,0.00013085,2]
[337241345,1725529831666,-315.40449296,0.00013085,2]
[337241354,1725529837528,-8951.2499874,0.00013085,2]
[337241355,1725529837538,-726.22,0.00013121,2]
[337241356,1725529837547,-303.3037382,0.00013135,2]
[337241357,1725529837557,-189.84,0.0001315,2]
[337241358,1725529837567,-250.0,0.00013163,2]
[337241359,1725529837576,-269.93,0.00013199,2]
[337241360,1725529837585,-200.35,0.00013209,2]
[337241361,1725529837594,-1000.0,0.00013219,2]
[337241362,1725529837605,-200.0,0.00013219,2]
[337241363,1725529837615,-499.99,0.00013233,2]
[337241364,1725529837624,-5348.55,0.00013233,2]
[337241365,1725529837633,-150.0,0.00013233,2]
[337241366,1725529837643,-180.46,0.00013237,2]
[337241367,1725529837652,-250.0,0.00013242,2]
[337241368,1725529837661,-173.26,0.00013252,2]
[337241369,1725529837671,-157.56,0.0001327,2]
[337241370,1725529837680,-250.0,0.0001328,2]
[337241371,1725529837689,-777.44,0.00013282,2]
[337241372,1725529837699,-573.39,0.00013585,2]
[337241373,1725529837708,-1560.2075,0.00013599,2]
[337241374,1725529837718,-642.66,0.00013622,2]
[337241375,1725529837728,-642.66,0.00013625,2]
[337241376,1725529837737,-150.0,0.00013628,2]
[337241377,1725529837746,-642.66,0.00013629,2]
[337241378,1725529837756,-642.66,0.00013633,2]
[337241379,1725529837765,-642.66,0.00013636,2]
[337241380,1725529837775,-40350.2668,0.00013638,2]
[337241381,1725529837784,-642.66,0.0001364,2]
[337241382,1725529837793,-642.66,0.00013643,2]
[337241383,1725529837802,-642.66,0.00013647,2]
[337241384,1725529837812,-642.66,0.0001365,2]
[337241385,1725529837821,-642.66,0.00013654,2]
[337241386,1725529837831,-642.66,0.00013658,2]
[337241387,1725529837840,-642.66,0.00013661,2]
[337241388,1725529837849,-642.66,0.00013665,2]
[337241389,1725529837858,-642.66,0.00013668,2]
[337241390,1725529837867,-642.66,0.00013672,2]
[337241391,1725529837877,-642.66,0.00013676,2]
[337241392,1725529837886,-642.66,0.00013679,2]
[337241393,1725529837896,-642.66,0.00013683,2]
[337241394,1725529837905,-642.66,0.00013686,2]
[337241396,1725529837915,-642.66,0.0001369,2]
[337241398,1725529837924,-3793.2196,0.000137,2]
[337241400,1725529837933,-36339.402,0.000138,2]
[337241401,1725529837943,-900.0,0.000139,5]
[337241403,1725529837952,-1800.0,0.00014,5]
[337241405,1725529837961,-2700.0,0.000141,5]
[337241407,1725529837979,-422.04,0.00014141,2]
[337241409,1725529837991,-791.84,0.00014141,2]
[337241411,1725529838000,-422.04,0.00014141,2]
[337241413,1725529838009,-791.84,0.00014141,2]
[337241415,1725529838018,-1624.16,0.00014141,2]
[337241417,1725529838028,-422.04,0.00014141,2]
[337241419,1725529838036,-422.04,0.000142,2]
[337241421,1725529838046,-791.84,0.000142,2]
[337241423,1725529838055,-422.04,0.000142,2]
[337241425,1725529838064,-3600.0,0.000142,5]
[337241426,1725529838074,-791.84,0.00014241,2]
[337241428,1725529838084,-791.84,0.00014241,2]
[337241430,1725529838093,-150.0,0.00014278,2]
[337241432,1725529838102,-357.37,0.00014278,2]
[337241434,1725529838111,-427.41,0.00014278,2]
[337241436,1725529838120,-357.37,0.00014278,2]
[337241438,1725529838129,-350.92,0.00014278,2]
[337241440,1725529838138,-150.0,0.00014278,2]
[337241441,1725529838147,-150.0,0.00014278,2]
[337241443,1725529838156,-154.12,0.00014278,2]
[337241445,1725529838165,-301.56,0.00014278,2]
[337241447,1725529838174,-427.41,0.00014278,2]
[337241449,1725529838183,-150.0,0.00014278,2]
[337241450,1725529838192,-150.0,0.00014278,2]
[337241452,1725529838202,-357.37,0.00014278,2]
[337241454,1725529838211,-150.0,0.00014278,2]
[337241456,1725529838223,-427.41,0.00014278,2]
[337241458,1725529838232,-150.0,0.00014278,2]
[337241460,1725529838241,-357.37,0.00014278,2]
[337241462,1725529838250,-150.0,0.00014278,2]
[337241464,1725529838259,-427.41,0.00014278,2]
[337241466,1725529838269,-357.37,0.00014278,2]
[337241468,1725529838278,-150.0,0.00014278,2]
[337241470,1725529838288,-150.0,0.00014278,2]
[337241472,1725529838297,-150.0,0.00014278,2]
[337241474,1725529838306,-427.41,0.00014278,2]
[337241476,1725529838315,-356.21,0.00014278,2]
[337241478,1725529838324,-150.0,0.00014278,2]
[337241480,1725529838334,-427.41,0.00014278,2]
[337241482,1725529838343,-150.0,0.00014278,2]
[337241484,1725529838352,-426.39,0.00014278,2]
[337241485,1725529838361,-4600.0,0.000143,5]